[Event "AUT Bundesliga 2021-22"]
[Site "Graz"]
[Date "2022.03.24"]
[Round "5.35"]
[White "Richter, Nils"]
[Black "de Francesco, Klaus"]
[Result "1/2-1/2"]
[ECO "E01"]
[WhiteElo "2320"]
[BlackElo "2177"]
[Annotator "NA"]
[PlyCount "63"]
[EventDate "2021.11.04"]
[EventType "team-tourn"]
[EventCountry "AUT"]
[SourceTitle "playchess.com"]
[Source "ChessBase"]
[SourceQuality "1"]
[TimeControl "40/5400+30:1800+30"]

1. d4 {[%emt 0:00:02]} Nf6 {[%emt 0:00:19]} 2. c4 {[%emt 0:00:09]} e6 {[%emt 0:00:08]} 3. g3 {[%emt 0:00:23]} d5 {[%emt 0:00:19]} 4. Bg2 {[%emt 0:00:08]} Bb4+ {[%emt 0:00:30]} 5. Nd2 {[%emt 0:00:21]} O-O {[%emt 0:00:32]} 6. Ngf3 {[%emt 0:00:13]} b6 {[%emt 0:01:36]} 7. O-O {[%emt 0:00:25]} Bb7 {[%emt 0:00:19]} 8. a3 {[%emt 0:00:24]} Be7 {[%emt 0:00:11]} 9. cxd5 {[%emt 0:00:27]} exd5 {[%emt 0:00:37]} 10. Nb1 {[%emt 0:01:20]} Nbd7 {[%emt 0:02:20]} 11. Nc3 {[%emt 0:00:29]} c5 {[%emt 0:01:08]} 12. Bf4 {[%emt 0:01:01]} a6 {[%emt 0:01:44]} 13. Rc1 {[%emt 0:03:07]} Rc8 {[%emt 0:01:32]} 14. e3 {[%emt 0:08:41]} h6 {[%emt 0:03:59]} 15. h4 {[%emt 0:05:02]} c4 {[%emt 0:07:06]} 16. Ne5 {[%emt 0:04:05]} Nxe5 {[%emt 0:04:47]} 17. dxe5 {[%emt 0:16:12]} Ne4 {[%emt 0:01:43]} 18. h5 {[%emt 0:00:23]} Nxc3 {[%emt 0:02:33]} 19. Rxc3 {[%emt 0:00:08]} Qd7 {[%emt 0:00:00]} 20. Rc2 {[%emt 0:12:22]} Qe6 {[%emt 0:03:37]} 21. Kh2 {[%emt 0:03:38]} Rcd8 {[%emt 0:00:32]} 22. Rd2 {[%emt 0:01:56]} b5 {[%emt 0:02:12]} 23. Bh3 {[%emt 0:08:28]} Qb6 {[%emt 0:05:17]} 24. Bf5 {[%emt 0:00:39]} Qc6 {[%emt 0:04:56]} 25. Rg1 {[%emt 0:00:58]} g6 {[%emt 0:08:39]} 26. Qg4 {[%emt 0:07:50]} g5 {[%emt 0:03:29]} 27. e6 {[%emt 0:00:56]} Bc8 {[%emt 0:01:07]} 28. exf7+ {[%emt 0:02:52]} Rxf7 {[%emt 0:00:43]} 29. Bxc8 {[%emt 0:00:17]} Qxc8 {[%emt 0:01:03]} 30. Qxc8 {[%emt 0:00:37]} Rxc8 {[%emt 0:00:06]} 31. Be5 {[%emt 0:00:23]} Bf6 {[%emt 0:02:01]} 32. Bxf6 {[%emt 0:05:22]} 1/2-1/2

[Event "AUT Bundesliga 2021-22"]
[Site "Graz"]
[Date "2022.03.24"]
[Round "5.36"]
[White "Gerhold, Michael"]
[Black "Neyman, Igor"]
[Result "0-1"]
[ECO "A17"]
[WhiteElo "2167"]
[BlackElo "2325"]
[Annotator "NA"]
[PlyCount "86"]
[EventDate "2021.11.04"]
[EventType "team-tourn"]
[EventCountry "AUT"]
[SourceTitle "playchess.com"]
[Source "ChessBase"]
[SourceQuality "1"]
[TimeControl "40/5400+30:1800+30"]

1. Nf3 {[%emt 0:00:05]} Nf6 {[%emt 0:00:30]} 2. c4 {[%emt 0:00:14]} e6 {[%emt 0:00:35]} 3. Nc3 {[%emt 0:00:38]} Bb4 {[%emt 0:04:26]} 4. Qc2 {[%emt 0:00:08]} c5 {[%emt 0:02:35]} 5. a3 {[%emt 0:00:31]} Bxc3 {[%emt 0:01:58]} 6. Qxc3 {[%emt 0:00:06]} b6 {[%emt 0:11:06]} 7. g3 {[%emt 0:06:03]} Bb7 {[%emt 0:02:48]} 8. Bg2 {[%emt 0:00:06]} O-O {[%emt 0:01:05]} 9. O-O {[%emt 0:00:19]} d5 {[%emt 0:03:25]} 10. cxd5 {[%emt 0:08:44]} Nxd5 {[%emt 0:04:56]} 11. Qc2 {[%emt 0:00:48]} Nc6 {[%emt 0:05:36]} 12. b3 {[%emt 0:02:44]} Qe7 {[%emt 0:05:49]} 13. Bb2 {[%emt 0:00:28]} Rac8 {[%emt 0:01:23]} 14. h4 {[%emt 0:11:17]} h6 {[%emt 0:05:07]} 15. Rac1 {[%emt 0:08:27]} Rfd8 {[%emt 0:03:44]} 16. e3 {[%emt 0:08:03]} Nf6 {[%emt 0:03:56]} 17. Rfd1 {[%emt 0:07:47]} Ba6 {[%emt 0:09:57]} 18. d3 {[%emt 0:01:22]} Bb7 {[%emt 0:08:12]} 19. Qc3 {[%emt 0:01:50]} Rd6 {[%emt 0:01:47]} 20. Nd2 {[%emt 0:04:21]} Rd7 {[%emt 0:02:34]} 21. Nc4 {[%emt 0:15:40]} Qf8 {[%emt 0:03:36]} 22. Qc2 {[%emt 0:01:51]} Nd5 {[%emt 0:00:59]} 23. Qe2 {[%emt 0:00:40]} f6 {[%emt 0:03:20]} 24. Bh3 {[%emt 0:00:46]} Qf7 {[%emt 0:00:54]} 25. e4 {[%emt 0:04:35]} Nc7 {[%emt 0:00:52]} 26. e5 {[%emt 0:00:16]} fxe5 {[%emt 0:01:08]} 27. Bxe5 {[%emt 0:04:17]} Nd4 {[%emt 0:01:16]} 28. Bxd4 {[%emt 0:00:19]} Rxd4 {[%emt 0:00:12]} 29. Ne5 {[%emt 0:00:36]} Qf6 {[%emt 0:00:59]} 30. b4 {[%emt 0:02:53]} Nb5 {[%emt 0:03:13]} 31. Bg2 Bxg2 {[%emt 0:01:15]} 32. Kxg2 {[%emt 0:04:59]} Rd5 {[%emt 0:01:04]} 33. f4 {[%emt 0:00:46]} Nd4 {[%emt 0:00:42]} 34. Qe4 {[%emt 0:00:33]} Nf5 {[%emt 0:00:57]} 35. Re1 {[%emt 0:00:35]} Rc7 {[%emt 0:01:22]} 36. Rc3 {[%emt 0:02:15]} Nd6 {[%emt 0:01:20]} 37. Qe3 {[%emt 0:02:13]} Nb5 {[%emt 0:01:26]} 38. Rc4 {[%emt 0:01:29]} Nxa3 {[%emt 0:01:07]} 39. Re4 {[%emt 0:00:04]} Nc2 {[%emt 0:00:29]} 40. Qe2 {[%emt 0:00:00]} Nxe1+ {[%emt 0:00:00]} 41. Qxe1 {[%emt 0:00:25]} cxb4 {[%emt 0:02:14]} 42. Ng4 {[%emt 0:01:06]} Rc2+ {[%emt 0:09:49]} 43. Kg1 {[%emt 0:01:17]} Qc3 {[%emt 0:01:20]} 0-1

[Event "AUT Bundesliga 2021-22"]
[Site "Graz"]
[Date "2022.03.25"]
[Round "6"]
[White "Kunin, Vitaly"]
[Black "Predojevic, Borki"]
[Result "1/2-1/2"]
[ECO "D43"]
[WhiteElo "2547"]
[BlackElo "2585"]
[Annotator "ChessBase"]
[PlyCount "83"]
[EventDate "2021.01.17"]
[EventType "team-tourn"]
[EventCountry "AUT"]
[SourceTitle "playchess.com"]
[Source "ChessBase"]
[SourceQuality "1"]
[TimeControl "40/5400+30:1800+30"]

1. d4 {[%emt 0:00:33]} Nf6 {[%emt 0:00:08]} 2. c4 {[%emt 0:00:17]} e6 {[%emt 0:00:07]} 3. Nf3 {[%emt 0:00:15]} d5 {[%emt 0:00:18]} 4. Nc3 {[%emt 0:00:54]} c6 {[%emt 0:04:34]} 5. Qd3 {[%emt 0:02:17]} dxc4 {[%emt 0:07:25]} 6. Qxc4 {[%emt 0:00:25]} b5 {[%emt 0:00:08]} 7. Qd3 {[%emt 0:00:10]} a6 {[%emt 0:00:06]} 8. Bg5 {[%emt 0:03:24]} c5 {[%emt 0:07:35]} 9. a4 {[%emt 0:02:28]} cxd4 {[%emt 0:16:32]} 10. Nxd4 {[%emt 0:01:29]} b4 {[%emt 0:01:53]} 11. Ne4 {[%emt 0:00:20]} Bb7 {[%emt 0:00:03]} 12. Bxf6 {[%emt 0:00:23]} gxf6 {[%emt 0:00:03]} 13. Rd1 {[%emt 0:00:43]} b3 {[%emt 0:17:50]} 14. Nxb3 {[%emt 0:00:35]} Qxd3 {[%emt 0:01:12]} 15. exd3 {[%emt 0:00:21]} Bb4+ {[%emt 0:00:34]} 16. Nc3 {[%emt 0:03:38]} Ke7 {[%emt 0:03:20]} 17. d4 {[%emt 0:05:14]} Nd7 {[%emt 0:06:50]} 18. f3 {[%emt 0:08:19]} Rhc8 {[%emt 0:05:51]} 19. Rc1 {[%emt 0:01:52]} Nb6 {[%emt 0:04:24]} 20. Kf2 {[%emt 0:00:44]} Rab8 {[%emt 0:08:40]} 21. a5 {[%emt 0:10:37]} Nc4 {[%emt 0:02:22]} 22. Bxc4 {[%emt 0:01:00]} Rxc4 {[%emt 0:00:02]} 23. Na4 {[%emt 0:03:05]} Rxc1 {[%emt 0:02:53]} 24. Rxc1 {[%emt 0:00:31]} Bd5 {[%emt 0:00:06]} 25. Nbc5 {[%emt 0:03:37]} Bxc5 {[%emt 0:00:09]} 26. dxc5 {[%emt 0:02:29]} Rb4 {[%emt 0:00:37]} 27. b3 {[%emt 0:16:50]} Bc6 {[%emt 0:00:03]} 28. Rc3 {[%emt 0:01:27]} Rb5 {[%emt 0:07:44]} 29. Nb6 {[%emt 0:00:46]} Rxa5 {[%emt 0:01:04]} 30. Nc8+ {[%emt 0:00:46]} Kd7 {[%emt 0:00:40]} 31. Nd6 {[%emt 0:00:27]} Ra2+ {[%emt 0:00:23]} 32. Kg3 {[%emt 0:00:14]} a5 {[%emt 0:01:28]} 33. Rc4 {[%emt 0:07:13]} Bd5 {[%emt 0:00:10]} 34. Rh4 {[%emt 0:00:11]} Kc6 {[%emt 0:01:18]} 35. Rxh7 {[%emt 0:01:00]} Kxc5 {[%emt 0:00:54]} 36. Ne4+ {[%emt 0:01:13]} Bxe4 {[%emt 0:00:20]} 37. fxe4 {[%emt 0:00:08]} Ra3 {[%emt 0:00:18]} 38. Kg4 {[%emt 0:05:03]} Rxb3 {[%emt 0:00:09]} 39. Rxf7 {[%emt 0:00:11]} Rb2 {[%emt 0:00:30]} 40. Kg3 {[%emt 0:00:00]} Rb3+ {[%emt 0:00:00]} 41. Kg4 {[%emt 0:11:32]} Rb2 {[%emt 0:02:16]} 42. Kg3 {[%emt 0:04:34]} 1/2-1/2

[Event "AUT Bundesliga 2021-22"]
[Site "Graz"]
[Date "2022.03.25"]
[Round "6"]
[White "Naumann, Alexander"]
[Black "Amann, Harald"]
[Result "1-0"]
[ECO "B30"]
[WhiteElo "2514"]
[BlackElo "1913"]
[Annotator "ChessBase"]
[PlyCount "39"]
[EventDate "2021.01.17"]
[EventType "team-tourn"]
[EventCountry "AUT"]
[SourceTitle "playchess.com"]
[Source "ChessBase"]
[SourceQuality "1"]
[TimeControl "40/5400+30:1800+30"]

1. e4 {[%emt 0:00:04]} c5 {[%emt 0:02:03]} 2. Nf3 {[%emt 0:00:06]} Nc6 {[%emt 0:00:11]} 3. Bb5 {[%emt 0:00:11]} Nd4 {[%emt 0:00:12]} 4. Nxd4 {[%emt 0:01:53]} cxd4 {[%emt 0:00:03]} 5. O-O {[%emt 0:00:31]} e6 {[%emt 0:01:43]} 6. d3 {[%emt 0:01:03]} a6 {[%emt 0:06:56]} 7. Ba4 {[%emt 0:02:22]} b5 {[%emt 0:04:26]} 8. Bb3 {[%emt 0:00:03]} Bb7 {[%emt 0:00:37]} 9. Nd2 {[%emt 0:06:41]} Ne7 {[%emt 0:02:54]} 10. f4 {[%emt 0:05:19]} g6 {[%emt 0:02:01]} 11. Nf3 {[%emt 0:02:57]} Bg7 {[%emt 0:04:25]} 12. Qe1 {[%emt 0:01:17]} O-O {[%emt 0:01:43]} 13. Bd2 {[%emt 0:08:14]} Nc6 {[%emt 0:00:55]} 14. f5 {[%emt 0:01:50]} exf5 {[%emt 0:29:04]} 15. exf5 {[%emt 0:02:30]} d5 {[%emt 0:02:28]} 16. fxg6 {[%emt 0:02:00]} hxg6 {[%emt 0:00:39]} 17. Ng5 {[%emt 0:00:50]} Re8 {[%emt 0:03:42]} 18. Qh4 {[%emt 0:02:07]} Ne5 {[%emt 0:00:49]} 19. Qh7+ {[%emt 0:01:30]} Kf8 {[%emt 0:07:29]} 20. Bb4+ {[%emt 0:00:11]} 1-0

[Event "AUT Bundesliga 2021-22"]
[Site "Graz"]
[Date "2022.03.25"]
[Round "6"]
[White "Diermair, Andreas"]
[Black "Peyrer, Konstantin"]
[Result "1/2-1/2"]
[ECO "A67"]
[WhiteElo "2469"]
[BlackElo "2301"]
[Annotator "ChessBase"]
[PlyCount "62"]
[EventDate "2021.01.17"]
[EventType "team-tourn"]
[EventCountry "AUT"]
[SourceTitle "playchess.com"]
[Source "ChessBase"]
[SourceQuality "1"]
[TimeControl "40/5400+30:1800+30"]

1. d4 {[%emt 0:00:03]} Nf6 {[%emt 0:00:04]} 2. c4 {[%emt 0:00:42]} c5 {[%emt 0:00:07]} 3. d5 {[%emt 0:00:16]} e6 {[%emt 0:00:04]} 4. Nc3 {[%emt 0:00:07]} exd5 {[%emt 0:00:03]} 5. cxd5 {[%emt 0:00:03]} d6 {[%emt 0:00:05]} 6. e4 {[%emt 0:02:18]} g6 {[%emt 0:00:07]} 7. f4 {[%emt 0:00:33]} Bg7 {[%emt 0:00:12]} 8. Bb5+ {[%emt 0:00:07]} Nfd7 {[%emt 0:00:08]} 9. Nf3 {[%emt 0:00:52]} O-O {[%emt 0:00:14]} 10. O-O {[%emt 0:00:40]} a6 {[%emt 0:00:21]} 11. Bd3 {[%emt 0:00:05]} b5 {[%emt 0:00:09]} 12. Kh1 {[%emt 0:00:08]} c4 {[%emt 0:05:25]} 13. Bc2 {[%emt 0:00:29]} Nc5 {[%emt 0:00:23]} 14. a3 {[%emt 0:06:34]} Bg4 {[%emt 0:01:01]} 15. Be3 {[%emt 0:10:21]} Nbd7 {[%emt 0:00:19]} 16. Bd4 {[%emt 0:00:59]} Bxf3 {[%emt 0:01:33]} 17. Rxf3 {[%emt 0:00:16]} Re8 {[%emt 0:00:11]} 18. Bxg7 {[%emt 0:02:04]} Kxg7 {[%emt 0:00:04]} 19. Qd4+ {[%emt 0:01:07]} Qf6 {[%emt 0:00:12]} 20. Qf2 {[%emt 0:00:23]} Kg8 {[%emt 0:04:14]} 21. Re1 {[%emt 0:02:20]} Qg7 {[%emt 0:01:37]} 22. h3 {[%emt 0:06:15]} Rab8 {[%emt 0:01:04]} 23. Rfe3 {[%emt 0:10:34]} b4 {[%emt 0:05:01]} 24. axb4 {[%emt 0:02:09]} Rxb4 {[%emt 0:00:05]} 25. Bb1 {[%emt 0:03:35]} Qd4 {[%emt 0:02:00]} 26. Qe2 {[%emt 0:13:03]} Nd3 {[%emt 0:14:59]} 27. Bxd3 {[%emt 0:00:50]} cxd3 {[%emt 0:00:16]} 28. Rxd3 {[%emt 0:00:26]} Qc4 {[%emt 0:00:05]} 29. Rd2 {[%emt 0:05:21]} Nc5 {[%emt 0:01:42]} 30. Qxc4 {[%emt 0:08:31]} Rxc4 {[%emt 0:00:05]} 31. e5 {[%emt 0:01:37]} Rxf4 {[%emt 0:00:18]} 1/2-1/2

[Event "AUT Bundesliga 2021-22"]
[Site "Graz"]
[Date "2022.03.25"]
[Round "6"]
[White "Froewis, Georg"]
[Black "Schreiner, Peter"]
[Result "1-0"]
[ECO "A34"]
[WhiteElo "2449"]
[BlackElo "2435"]
[Annotator "NA"]
[PlyCount "51"]
[EventDate "2021.01.17"]
[EventType "team-tourn"]
[EventCountry "AUT"]
[SourceTitle "playchess.com"]
[Source "ChessBase"]
[SourceQuality "1"]
[TimeControl "40/5400+30:1800+30"]

1. Nf3 {[%emt 0:00:03]} Nf6 {[%emt 0:00:38]} 2. c4 {[%emt 0:00:12]} c5 {[%emt 0:00:55]} 3. Nc3 {[%emt 0:00:16]} d5 {[%emt 0:02:18]} 4. cxd5 {[%emt 0:00:11]} Nxd5 {[%emt 0:00:06]} 5. e3 {[%emt 0:01:27]} Nc6 {[%emt 0:04:06]} 6. Bc4 {[%emt 0:00:56]} Nxc3 {[%emt 0:09:59]} 7. bxc3 {[%emt 0:00:28]} e6 {[%emt 0:01:37]} 8. O-O {[%emt 0:00:52]} Be7 {[%emt 0:00:41]} 9. d4 {[%emt 0:00:07]} O-O {[%emt 0:00:10]} 10. e4 {[%emt 0:00:54]} b6 {[%emt 0:03:25]} 11. Be3 {[%emt 0:06:12]} Bb7 {[%emt 0:02:51]} 12. Qe2 {[%emt 0:00:11]} cxd4 {[%emt 0:01:49]} 13. cxd4 {[%emt 0:00:05]} Na5 {[%emt 0:02:59]} 14. Bd3 {[%emt 0:00:05]} Rc8 {[%emt 0:01:47]} 15. Rad1 {[%emt 0:04:46]} Qc7 {[%emt 0:15:23]} 16. Ng5 {[%emt 0:06:53]} Bxg5 {[%emt 0:12:30]} 17. Bxg5 {[%emt 0:00:07]} f5 {[%emt 0:01:53]} 18. d5 {[%emt 0:06:55]} exd5 {[%emt 0:03:40]} 19. exf5 {[%emt 0:00:07]} Nc4 {[%emt 0:01:41]} 20. Rfe1 {[%emt 0:02:44]} h6 {[%emt 0:01:27]} 21. Be7 {[%emt 0:02:38]} Rce8 {[%emt 0:01:47]} 22. Qe6+ {[%emt 0:01:58]} Rf7 {[%emt 0:03:17]} 23. f6 {[%emt 0:00:07]} gxf6 {[%emt 0:03:24]} 24. Bh7+ {[%emt 0:06:54]} Kg7 {[%emt 0:00:33]} 25. Bxf6+ {[%emt 0:00:07]} Rxf6 {[%emt 0:00:13]} 26. Qxe8 {[%emt 0:00:04]} 1-0

[Event "AUT Bundesliga 2021-22"]
[Site "Graz"]
[Date "2022.03.25"]
[Round "6"]
[White "Kvetny, Mark"]
[Black "Vitouch, Anatol"]
[Result "1-0"]
[ECO "A01"]
[WhiteElo "2417"]
[BlackElo "2245"]
[Annotator "NA"]
[PlyCount "65"]
[EventDate "2021.01.17"]
[EventType "team-tourn"]
[EventCountry "AUT"]
[SourceTitle "playchess.com"]
[Source "ChessBase"]
[SourceQuality "1"]
[TimeControl "40/5400+30:1800+30"]

1. b3 {[%emt 0:00:03]} d5 {[%emt 0:00:06]} 2. Bb2 {[%emt 0:00:07]} Bg4 {[%emt 0:00:13]} 3. f3 {[%emt 0:00:57]} Bh5 {[%emt 0:02:31]} 4. h4 {[%emt 0:00:13]} f6 {[%emt 0:05:21]} 5. d4 {[%emt 0:00:21]} e6 {[%emt 0:07:23]} 6. e3 {[%emt 0:05:16]} Bd6 {[%emt 0:00:31]} 7. Bd3 {[%emt 0:00:42]} Bg3+ {[%emt 0:05:08]} 8. Kd2 {[%emt 0:01:34]} Nc6 {[%emt 0:06:50]} 9. Ne2 {[%emt 0:01:29]} Bd6 {[%emt 0:00:07]} 10. g4 {[%emt 0:11:20]} Bf7 {[%emt 0:05:21]} 11. a3 {[%emt 0:00:41]} e5 {[%emt 0:04:30]} 12. Nbc3 {[%emt 0:01:49]} a6 {[%emt 0:06:07]} 13. Qg1 {[%emt 0:05:43]} Qe7 {[%emt 0:06:35]} 14. Qf2 {[%emt 0:19:23]} O-O-O {[%emt 0:03:29]} 15. Kc1 {[%emt 0:05:55]} Nh6 {[%emt 0:06:55]} 16. Kb1 {[%emt 0:00:35]} g6 {[%emt 0:08:29]} 17. Ka2 {[%emt 0:02:35]} f5 {[%emt 0:00:23]} 18. g5 {[%emt 0:02:35]} Ng8 {[%emt 0:02:14]} 19. e4 {[%emt 0:03:35]} dxe4 {[%emt 0:07:32]} 20. fxe4 {[%emt 0:00:10]} exd4 {[%emt 0:02:58]} 21. Nxd4 {[%emt 0:10:56]} Ne5 {[%emt 0:00:42]} 22. exf5 {[%emt 0:11:48]} gxf5 {[%emt 0:05:22]} 23. Nxf5 {[%emt 0:01:02]} Qe8 {[%emt 0:00:32]} 24. Nxd6+ {[%emt 0:01:58]} cxd6 {[%emt 0:00:10]} 25. Be4 {[%emt 0:00:57]} Ne7 {[%emt 0:00:22]} 26. Rhe1 {[%emt 0:01:47]} h6 {[%emt 0:02:09]} 27. Rad1 {[%emt 0:02:31]} hxg5 {[%emt 0:00:11]} 28. hxg5 {[%emt 0:00:04]} Rg8 {[%emt 0:00:59]} 29. Qb6 {[%emt 0:01:06]} N7c6 {[%emt 0:01:13]} 30. Bf5+ {[%emt 0:01:04]} Kb8 {[%emt 0:01:30]} 31. Ne4 {[%emt 0:00:31]} Nd7 {[%emt 0:06:08]} 32. Bxd7 {[%emt 0:01:40]} Qxd7 {[%emt 0:00:06]} 33. Nf6 {[%emt 0:00:26]} 1-0

[Event "AUT Bundesliga 2021-22"]
[Site "Graz"]
[Date "2022.03.25"]
[Round "6"]
[White "Webersberger, Johann"]
[Black "Schlosser, Philipp"]
[Result "1-0"]
[ECO "B24"]
[WhiteElo "2321"]
[BlackElo "2512"]
[Annotator "ChessBase"]
[PlyCount "75"]
[EventDate "2021.01.17"]
[EventType "team-tourn"]
[EventCountry "AUT"]
[SourceTitle "playchess.com"]
[Source "ChessBase"]
[SourceQuality "1"]
[TimeControl "40/5400+30:1800+30"]

1. e4 {[%emt 0:00:02]} c5 {[%emt 0:01:04]} 2. Nc3 {[%emt 0:00:05]} Nc6 {[%emt 0:00:11]} 3. Bb5 {[%emt 0:00:37]} Nf6 {[%emt 0:00:42]} 4. Nf3 {[%emt 0:00:11]} Qc7 {[%emt 0:00:27]} 5. O-O {[%emt 0:01:01]} Nd4 {[%emt 0:01:10]} 6. Nxd4 {[%emt 0:00:20]} cxd4 {[%emt 0:00:48]} 7. Nd5 {[%emt 0:00:05]} Nxd5 {[%emt 0:00:23]} 8. exd5 {[%emt 0:00:04]} Qc5 {[%emt 0:04:06]} 9. c4 {[%emt 0:00:34]} a6 {[%emt 0:02:24]} 10. b4 {[%emt 0:02:40]} Qxb4 {[%emt 0:01:18]} 11. Ba4 {[%emt 0:00:06]} Qxc4 {[%emt 0:37:40]} 12. Bb3 {[%emt 0:01:48]} Qc7 {[%emt 0:01:32]} 13. Re1 {[%emt 0:42:22]} e5 {[%emt 0:14:09]} 14. f4 {[%emt 0:01:56]} d6 {[%emt 0:00:15]} 15. Qh5 {[%emt 0:13:12]} Be7 {[%emt 0:14:39]} 16. fxe5 {[%emt 0:02:39]} dxe5 {[%emt 0:01:18]} 17. Rxe5 {[%emt 0:18:49]} O-O {[%emt 0:00:43]} 18. Bb2 {[%emt 0:00:46]} Bf6 {[%emt 0:04:45]} 19. Bxd4 {[%emt 0:01:58]} Bxe5 {[%emt 0:00:31]} 20. Bxe5 {[%emt 0:00:07]} Qb6+ {[%emt 0:00:07]} 21. d4 {[%emt 0:00:51]} Qg6 {[%emt 0:00:32]} 22. Qxg6 {[%emt 0:01:19]} hxg6 {[%emt 0:00:02]} 23. Rc1 {[%emt 0:00:05]} Rd8 {[%emt 0:05:13]} 24. d6 {[%emt 0:01:33]} Rd7 {[%emt 0:01:56]} 25. Bd5 {[%emt 0:01:17]} Rb8 {[%emt 0:01:30]} 26. Kf2 {[%emt 0:03:34]} Kf8 {[%emt 0:01:35]} 27. Ke3 {[%emt 0:00:00]} f6 {[%emt 0:01:03]} 28. Bg3 {[%emt 0:00:00]} Ke8 {[%emt 0:00:00]} 29. Be6 {[%emt 0:00:10]} Rd8 {[%emt 0:01:52]} 30. d5 {[%emt 0:00:15]} Bd7 {[%emt 0:00:03]} 31. Rc7 {[%emt 0:00:21]} a5 {[%emt 0:00:26]} 32. Kd4 {[%emt 0:01:59]} b5 {[%emt 0:00:24]} 33. Kc5 {[%emt 0:00:33]} b4 {[%emt 0:00:43]} 34. Bxd7+ {[%emt 0:02:08]} Rxd7 {[%emt 0:00:02]} 35. Kc6 {[%emt 0:00:03]} b3 {[%emt 0:02:29]} 36. axb3 {[%emt 0:00:20]} Rxb3 {[%emt 0:00:01]} 37. Rc8+ {[%emt 0:00:15]} Rd8 {[%emt 0:00:20]} 38. d7+ {[%emt 0:00:07]} 1-0

[Event "AUT Bundesliga 2021-22"]
[Site "Graz"]
[Date "2022.03.25"]
[Round "6"]
[White "Richter, Nils"]
[Black "Prinzjakowitsch, Bernhard"]
[Result "1-0"]
[ECO "A04"]
[WhiteElo "2320"]
[BlackElo "2091"]
[Annotator "NA"]
[PlyCount "101"]
[EventDate "2021.01.17"]
[EventType "team-tourn"]
[EventCountry "AUT"]
[SourceTitle "playchess.com"]
[Source "ChessBase"]
[SourceQuality "1"]
[TimeControl "40/5400+30:1800+30"]

1. Nf3 {[%emt 0:00:02]} Nc6 {[%emt 0:00:18]} 2. d4 {[%emt 0:01:25]} d6 {[%emt 0:00:06]} 3. e4 {[%emt 0:03:31]} e5 {[%emt 0:00:07]} 4. d5 {[%emt 0:01:06]} Nce7 {[%emt 0:00:09]} 5. c4 {[%emt 0:01:48]} f5 {[%emt 0:00:39]} 6. Nc3 {[%emt 0:01:06]} Nf6 {[%emt 0:01:26]} 7. exf5 {[%emt 0:08:20]} Bxf5 {[%emt 0:00:59]} 8. h3 {[%emt 0:00:22]} h6 {[%emt 0:02:09]} 9. g4 {[%emt 0:02:12]} Bg6 {[%emt 0:03:39]} 10. Be3 {[%emt 0:01:36]} Qd7 {[%emt 0:04:40]} 11. c5 {[%emt 0:09:02]} c6 {[%emt 0:12:26]} 12. cxd6 {[%emt 0:11:45]} Qxd6 {[%emt 0:05:02]} 13. dxc6 {[%emt 0:02:08]} Nxc6 {[%emt 0:00:13]} 14. Qxd6 {[%emt 0:04:15]} Bxd6 {[%emt 0:00:06]} 15. Bg2 {[%emt 0:00:09]} O-O-O {[%emt 0:14:50]} 16. O-O {[%emt 0:00:49]} Bb4 {[%emt 0:00:23]} 17. Rac1 {[%emt 0:04:33]} Kb8 {[%emt 0:00:56]} 18. a3 {[%emt 0:06:26]} Bxc3 {[%emt 0:04:45]} 19. Rxc3 {[%emt 0:00:02]} Rhe8 {[%emt 0:00:53]} 20. Re1 {[%emt 0:04:15]} Nd5 {[%emt 0:12:04]} 21. Rc5 {[%emt 0:00:54]} Bf7 {[%emt 0:08:51]} 22. Nh4 {[%emt 0:09:29]} Nce7 {[%emt 0:06:38]} 23. Be4 {[%emt 0:06:42]} b6 {[%emt 0:02:45]} 24. Rcc1 {[%emt 0:00:38]} g5 {[%emt 0:03:31]} 25. Nf5 {[%emt 0:00:31]} Nxf5 {[%emt 0:00:31]} 26. Bxf5 {[%emt 0:02:09]} Ne7 {[%emt 0:00:08]} 27. Be4 {[%emt 0:01:35]} Bd5 {[%emt 0:00:13]} 28. Bb1 {[%emt 0:01:45]} Bf3 {[%emt 0:02:25]} 29. Kh2 {[%emt 0:01:17]} Bb7 {[%emt 0:01:49]} 30. Rcd1 {[%emt 0:01:36]} Bf3 {[%emt 0:01:26]} 31. Rxd8+ {[%emt 0:00:31]} Rxd8 {[%emt 0:00:05]} 32. Kg3 {[%emt 0:00:23]} Bc6 {[%emt 0:07:30]} 33. Bc1 {[%emt 0:01:46]} Ng8 {[%emt 0:00:28]} 34. Bc2 {[%emt 0:02:34]} e4 {[%emt 0:00:14]} 35. Rd1 {[%emt 0:02:21]} Rf8 {[%emt 0:01:32]} 36. Rd6 {[%emt 0:03:07]} Kc7 {[%emt 0:00:54]} 37. Rg6 {[%emt 0:00:16]} Rf3+ {[%emt 0:00:21]} 38. Kg2 {[%emt 0:00:23]} Ne7 {[%emt 0:00:23]} 39. Rxh6 {[%emt 0:01:45]} Rf7 {[%emt 0:02:09]} 40. Kg1 {[%emt 0:00:00]} Bd5 {[%emt 0:00:00]} 41. Bxg5 {[%emt 0:05:26]} Nc6 {[%emt 0:01:28]} 42. Bf6 {[%emt 0:02:23]} Kd7 {[%emt 0:02:11]} 43. Rg6 {[%emt 0:01:56]} Ne7 {[%emt 0:01:03]} 44. Ba4+ {[%emt 0:01:22]} Ke6 {[%emt 0:00:19]} 45. Bxe7+ {[%emt 0:00:48]} Kxe7 {[%emt 0:00:06]} 46. Bc6 {[%emt 0:00:45]} Bxc6 {[%emt 0:01:08]} 47. Rxc6 {[%emt 0:00:03]} Rf3 {[%emt 0:00:06]} 48. Rc3 {[%emt 0:00:58]} Rf4 {[%emt 0:01:00]} 49. Rc7+ {[%emt 0:00:28]} Kf6 {[%emt 0:00:12]} 50. Kg2 {[%emt 0:02:09]} Ke5 {[%emt 0:04:51]} 51. Rxa7 {[%emt 0:00:42]} 1-0

[Event "AUT Bundesliga 2021-22"]
[Site "Graz"]
[Date "2022.03.25"]
[Round "6"]
[White "Dietmayer-Kraeutler, Marco"]
[Black "Gerhold, Michael"]
[Result "1/2-1/2"]
[ECO "E32"]
[WhiteElo "2312"]
[BlackElo "2167"]
[Annotator "NA"]
[PlyCount "60"]
[EventDate "2021.01.17"]
[EventType "team-tourn"]
[EventCountry "AUT"]
[SourceTitle "playchess.com"]
[Source "ChessBase"]
[SourceQuality "1"]
[TimeControl "40/5400+30:1800+30"]

1. d4 {[%emt 0:00:03]} Nf6 {[%emt 0:00:09]} 2. c4 {[%emt 0:00:05]} e6 {[%emt 0:00:09]} 3. Nc3 {[%emt 0:00:05]} Bb4 {[%emt 0:00:22]} 4. Qc2 {[%emt 0:00:04]} O-O {[%emt 0:00:14]} 5. a3 {[%emt 0:00:03]} Bxc3+ {[%emt 0:00:11]} 6. Qxc3 {[%emt 0:00:02]} d5 {[%emt 0:00:35]} 7. Bg5 {[%emt 0:00:51]} dxc4 {[%emt 0:02:52]} 8. Qxc4 {[%emt 0:01:39]} b6 {[%emt 0:00:50]} 9. Rc1 {[%emt 0:01:53]} Ba6 {[%emt 0:07:47]} 10. Qa4 {[%emt 0:00:15]} Qd7 {[%emt 0:02:28]} 11. Qxd7 {[%emt 0:05:29]} Nbxd7 {[%emt 0:00:05]} 12. Bxf6 {[%emt 0:00:54]} Nxf6 {[%emt 0:00:38]} 13. e3 {[%emt 0:00:14]} Bxf1 {[%emt 0:00:34]} 14. Kxf1 {[%emt 0:00:02]} c5 {[%emt 0:03:17]} 15. Nf3 {[%emt 0:01:54]} cxd4 {[%emt 0:07:16]} 16. Nxd4 {[%emt 0:00:08]} Rfc8 {[%emt 0:17:49]} 17. Ke2 {[%emt 0:01:22]} Kf8 {[%emt 0:08:19]} 18. Nb5 {[%emt 0:10:18]} Ke7 {[%emt 0:17:57]} 19. f3 {[%emt 0:01:33]} a5 {[%emt 0:05:27]} 20. e4 {[%emt 0:02:21]} Nd7 {[%emt 0:01:40]} 21. Nc7 {[%emt 0:10:23]} Rab8 {[%emt 0:00:21]} 22. b4 {[%emt 0:00:21]} axb4 {[%emt 0:04:06]} 23. axb4 {[%emt 0:00:10]} Nc5 {[%emt 0:04:12]} 24. Nb5 {[%emt 0:10:26]} Na6 {[%emt 0:01:01]} 25. Na7 {[%emt 0:01:46]} Rxc1 {[%emt 0:00:31]} 26. Rxc1 {[%emt 0:00:05]} Nxb4 {[%emt 0:02:53]} 27. Rb1 {[%emt 0:09:43]} Rb7 {[%emt 0:00:13]} 28. Rxb4 {[%emt 0:00:20]} Rxa7 {[%emt 0:00:05]} 29. Rxb6 {[%emt 0:00:06]} Ra2+ {[%emt 0:00:14]} 30. Kf1 {[%emt 0:00:05]} Rc2 1/2-1/2